[Event "13th Senioren-Cup Tegernsee 2025"]
[Site "Rottach-Egern"]
[Date "2025.04.04"]
[Round "7.2"]
[White "Belke, Frank"]
[Black "Hess, Christian"]
[Result "1-0"]
[Annotator "ChessBase"]
[ECO "D94"]
[WhiteElo "2235"]
[BlackElo "2168"]
[PlyCount "105"]
[EventDate "2025.03.25"]
[EventType "swiss"]
[EventCountry "GER"]
[SourceTitle "playchess.com"]
[Source "ChessBase"]
[SourceQuality "1"]
[TimeControl "7800+30"]

1. d4 {[%emt 0:00:03]} d5 {[%emt 0:00:33]} 2. c4 {[%emt 0:00:03]} c6 {[%emt 0:00:09]} 3. Nf3 {[%emt 0:00:04]} Nf6 {[%emt 0:00:17]} 4. e3 {[%emt 0:00:14]} g6 {[%emt 0:01:54]} 5. Nc3 {[%emt 0:01:04]} Bg7 {[%emt 0:00:05]} 6. Bd3 {[%emt 0:00:06]} O-O {[%emt 0:00:30]} 7. O-O {[%emt 0:00:05]} Bg4 {[%emt 0:00:54]} 8. h3 {[%emt 0:03:33]} Bxf3 {[%emt 0:01:11]} 9. Qxf3 {[%emt 0:00:03]} e6 {[%emt 0:00:30]} 10. b3 {[%emt 0:00:08]} Nbd7 {[%emt 0:00:41]} 11. Bb2 {[%emt 0:00:06]} Re8 {[%emt 0:19:33]} 12. Rad1 {[%emt 0:00:09]} a6 {[%emt 0:06:58]} 13. Bc2 {[%emt 0:08:48]} Qe7 {[%emt 0:11:44]} 14. Qe2 {[%emt 0:12:36]} Rac8 {[%emt 0:20:41]} 15. Rfe1 {[%emt 0:13:38]} Qd6 {[%emt 0:10:05]} 16. c5 {[%emt 0:02:33]} Qb8 {[%emt 0:02:40]} 17. f4 {[%emt 0:00:10]} b6 {[%emt 0:03:59]} 18. cxb6 {[%emt 0:00:56]} Nxb6 {[%emt 0:04:18]} 19. Bd3 {[%emt 0:04:03]} c5 {[%emt 0:01:41]} 20. Bxa6 {[%emt 0:02:33]} cxd4 {[%emt 0:03:47]} 21. exd4 {[%emt 0:00:46]} Qxf4 {[%emt 0:05:17]} 22. Bxc8 {[%emt 0:00:58]} Nxc8 {[%emt 0:01:30]} 23. Rf1 {[%emt 0:03:38]} Qc7 {[%emt 0:01:11]} 24. Qe5 {[%emt 0:05:07]} Qd8 {[%emt 0:01:31]} 25. Nb5 {[%emt 0:00:59]} Ne7 {[%emt 0:14:35]} 26. Qd6 {[%emt 0:04:46]} Nf5 {[%emt 0:14:23]} 27. Qxd8 {[%emt 0:01:02]} Rxd8 {[%emt 0:00:02]} 28. Rfe1 {[%emt 0:02:25]} Ne4 {[%emt 0:01:32]} 29. g4 {[%emt 0:01:54]} Nh4 {[%emt 0:03:01]} 30. Rd3 {[%emt 0:01:44]} Rc8 {[%emt 0:00:47]} 31. Rc1 {[%emt 0:00:27]} Rb8 {[%emt 0:01:04]} 32. a4 {[%emt 0:00:35]} Bh6 {[%emt 0:01:07]} 33. Rc2 {[%emt 0:00:25]} f5 {[%emt 0:00:57]} 34. Ba3 {[%emt 0:04:38]} f4 {[%emt 0:02:46]} 35. Be7 {[%emt 0:00:13]} g5 {[%emt 0:00:27]} 36. Bd6 {[%emt 0:00:50]} Rxb5 {[%emt 0:00:41]} 37. Rc8+ {[%emt 0:00:27]} Kf7 {[%emt 0:00:10]} 38. Rc7+ {[%emt 0:00:12]} Kg6 {[%emt 0:00:46]} 39. axb5 {[%emt 0:00:14]} Nxd6 {[%emt 0:00:16]} 40. b6 {[%emt 0:00:29]} Bg7 {[%emt 0:00:13]} 41. b7 {[%emt 0:00:31]} Nxb7 {[%emt 0:00:20]} 42. Rxb7 {[%emt 0:00:06]} Bxd4+ {[%emt 0:00:12]} 43. Kf1 {[%emt 0:00:18]} Be3 {[%emt 0:03:04]} 44. b4 {[%emt 0:01:53]} Nf3 {[%emt 0:03:01]} 45. b5 {[%emt 0:00:26]} Ne5 {[%emt 0:00:20]} 46. Rb3 {[%emt 0:00:44]} d4 {[%emt 0:00:19]} 47. Rb8 {[%emt 0:04:07]} d3 {[%emt 0:00:21]} 48. Rd8 {[%emt 0:00:16]} d2 {[%emt 0:01:06]} 49. b6 {[%emt 0:00:36]} Nc6 {[%emt 0:00:17]} 50. Rdd3 {[%emt 0:01:27]} e5 {[%emt 0:01:10]} 51. Ke2 {[%emt 0:00:53]} Kf6 {[%emt 0:00:42]} 52. b7 {[%emt 0:01:11]} Ba7 {[%emt 0:00:30]} 53. Rd6+ {[%emt 0:00:13]} 1-0

[Event "13th Senioren-Cup Tegernsee 2025"]
[Site "Rottach-Egern"]
[Date "2025.04.04"]
[Round "7.3"]
[White "Mareck, Sascha"]
[Black "Pieper, Thomas"]
[Result "0-1"]
[Annotator "ChessBase"]
[ECO "C47"]
[WhiteElo "2112"]
[BlackElo "2178"]
[PlyCount "82"]
[EventDate "2025.03.25"]
[EventType "swiss"]
[EventCountry "GER"]
[SourceTitle "playchess.com"]
[Source "ChessBase"]
[SourceQuality "1"]
[TimeControl "7800+30"]

1. e4 {[%emt 0:00:03]} e5 {[%emt 0:00:11]} 2. Nf3 {[%emt 0:00:07]} Nc6 {[%emt 0:00:06]} 3. d4 {[%emt 0:00:08]} exd4 {[%emt 0:00:07]} 4. Nxd4 {[%emt 0:00:05]} Nf6 {[%emt 0:00:05]} 5. Nc3 {[%emt 0:00:07]} Nxe4 {[%emt 0:00:05]} 6. Nxc6 {[%emt 0:08:37]} Nxc3 {[%emt 0:00:37]} 7. Nxd8 {[%emt 0:00:09]} Nxd1 {[%emt 0:00:05]} 8. Nxf7 {[%emt 0:00:06]} Kxf7 {[%emt 0:00:16]} 9. Kxd1 {[%emt 0:01:30]} d5 {[%emt 0:00:09]} 10. Bf4 {[%emt 0:00:28]} Bf5 {[%emt 0:08:54]} 11. Bd3 {[%emt 0:02:39]} Bxd3 {[%emt 0:00:21]} 12. cxd3 {[%emt 0:00:05]} c5 {[%emt 0:03:16]} 13. Re1 {[%emt 0:05:00]} Be7 {[%emt 0:07:02]} 14. Be5 {[%emt 0:03:10]} Rhe8 {[%emt 0:02:57]} 15. Rc1 {[%emt 0:01:03]} Rac8 {[%emt 0:08:38]} 16. a3 {[%emt 0:09:45]} b5 {[%emt 0:04:32]} 17. Rc2 {[%emt 0:06:14]} h5 {[%emt 0:14:56]} 18. Rce2 {[%emt 0:06:05]} g6 {[%emt 0:11:52]} 19. Re3 {[%emt 0:04:33]} g5 {[%emt 0:08:01]} 20. h3 {[%emt 0:05:45]} a5 {[%emt 0:07:22]} 21. g4 {[%emt 0:05:37]} h4 {[%emt 0:06:13]} 22. f4 {[%emt 0:00:51]} a4 {[%emt 0:04:25]} 23. Rf3 {[%emt 0:07:07]} Kg6 {[%emt 0:13:51]} 24. f5+ {[%emt 0:25:36]} Kf7 {[%emt 0:00:10]} 25. f6 {[%emt 0:00:37]} Bf8 {[%emt 0:05:46]} 26. Bc3 {[%emt 0:02:04]} b4 {[%emt 0:01:06]} 27. Rxe8 {[%emt 0:03:02]} Rxe8 {[%emt 0:00:12]} 28. Bd2 {[%emt 0:00:45]} bxa3 {[%emt 0:06:14]} 29. bxa3 {[%emt 0:00:34]} Rb8 {[%emt 0:00:09]} 30. d4 {[%emt 0:06:36]} c4 {[%emt 0:12:48]} 31. Bxg5 {[%emt 0:01:38]} Rb3 {[%emt 0:00:34]} 32. Rxb3 {[%emt 0:01:18]} axb3 {[%emt 0:03:44]} 33. a4 {[%emt 0:05:46]} c3 {[%emt 0:02:27]} 34. a5 {[%emt 0:01:35]} c2+ {[%emt 0:00:21]} 35. Kd2 {[%emt 0:03:33]} Bb4+ {[%emt 0:00:04]} 36. Kd3 {[%emt 0:00:27]} Bxa5 {[%emt 0:00:05]} 37. Bc1 {[%emt 0:00:26]} Kxf6 {[%emt 0:00:44]} 38. Bb2 {[%emt 0:00:25]} Bb4 {[%emt 0:02:46]} 39. Bc1 {[%emt 0:01:34]} Kg6 {[%emt 0:00:21]} 40. Bb2 {[%emt 0:00:12]} Ba5 {[%emt 0:01:49]} 41. Bc1 {[%emt 0:01:53]} Bd8 {[%emt 0:00:10]} 0-1

[Event "13th Senioren-Cup Tegernsee 2025"]
[Site "Rottach-Egern"]
[Date "2025.04.04"]
[Round "7.4"]
[White "Loew, Gerald"]
[Black "Wille, Thomas"]
[Result "1-0"]
[Annotator "ChessBase"]
[ECO "A11"]
[WhiteElo "2175"]
[BlackElo "2110"]
[PlyCount "65"]
[EventDate "2025.03.25"]
[EventType "swiss"]
[EventCountry "GER"]
[SourceTitle "playchess.com"]
[Source "ChessBase"]
[SourceQuality "1"]
[TimeControl "7800+30"]

1. c4 {[%emt 0:00:07]} c6 {[%emt 0:00:13]} 2. Nf3 {[%emt 0:00:40]} Nf6 {[%emt 0:00:15]} 3. Nc3 {[%emt 0:00:52]} d5 {[%emt 0:00:07]} 4. e3 {[%emt 0:00:25]} e6 {[%emt 0:00:39]} 5. b3 {[%emt 0:00:35]} Nbd7 {[%emt 0:02:04]} 6. Qc2 {[%emt 0:00:36]} Be7 {[%emt 0:03:10]} 7. Bb2 {[%emt 0:00:38]} O-O {[%emt 0:01:45]} 8. d4 {[%emt 0:02:35]} Qa5 {[%emt 0:05:56]} 9. Bd3 {[%emt 0:02:20]} dxc4 {[%emt 0:00:23]} 10. bxc4 {[%emt 0:00:51]} c5 {[%emt 0:05:13]} 11. O-O {[%emt 0:02:19]} cxd4 {[%emt 0:00:37]} 12. exd4 {[%emt 0:00:13]} Ba3 {[%emt 0:00:13]} 13. Bxa3 {[%emt 0:02:48]} Qxa3 {[%emt 0:00:01]} 14. c5 {[%emt 0:13:08]} Qa5 {[%emt 0:04:48]} 15. Rab1 {[%emt 0:01:14]} a6 {[%emt 0:07:47]} 16. Na4 {[%emt 0:13:08]} Qc7 {[%emt 0:00:25]} 17. Rfe1 {[%emt 0:02:08]} h6 {[%emt 0:02:26]} 18. h3 {[%emt 0:02:12]} Rd8 {[%emt 0:01:51]} 19. Bc4 {[%emt 0:06:20]} Rb8 {[%emt 0:07:56]} 20. Qb3 {[%emt 0:05:29]} Qc6 {[%emt 0:03:00]} 21. Nb6 {[%emt 0:11:51]} Nxb6 {[%emt 1:32:11]} 22. Qxb6 {[%emt 1:11:01]} Bd7 {[%emt 0:00:00]} 23. Ne5 {[%emt 0:00:00]} Qxb6 {[%emt 0:00:00]} 24. Rxb6 {[%emt 0:00:00]} Bb5 {[%emt 0:00:00]} 25. Bxb5 {[%emt 0:00:00]} axb5 {[%emt 0:00:00]} 26. Rxb5 {[%emt 0:00:00]} Nd7 {[%emt 0:00:00]} 27. Nc4 {[%emt 0:00:00]} Ra8 {[%emt 0:00:00]} 28. Rxb7 {[%emt 0:00:00]} Nb8 {[%emt 0:00:00]} 29. Ne5 {[%emt 0:00:00]} Rxa2 {[%emt 0:00:00]} 30. Nxf7 {[%emt 0:00:00]} Rxd4 {[%emt 0:00:00]} 31. Nxh6+ {[%emt 0:00:00]} gxh6 {[%emt 0:00:00]} 32. Rxb8+ {[%emt 0:00:00]} Kf7 {[%emt 0:00:00]} 33. Rb7+ {[%emt 0:00:00]} 1-0

[Event "13th Senioren-Cup Tegernsee 2025"]
[Site "Rottach-Egern"]
[Date "2025.04.04"]
[Round "7.5"]
[White "Cordts, Ingo"]
[Black "Polster, Wolfgang"]
[Result "1-0"]
[Annotator "ChessBase"]
[ECO "A86"]
[WhiteElo "2151"]
[BlackElo "2106"]
[PlyCount "49"]
[EventDate "2025.03.25"]
[EventType "swiss"]
[EventCountry "GER"]
[SourceTitle "playchess.com"]
[Source "ChessBase"]
[SourceQuality "1"]
[TimeControl "7800+30"]

1. d4 {[%emt 0:00:03]} c6 {[%emt 0:01:02]} 2. c4 {[%emt 0:00:06]} f5 {[%emt 0:00:42]} 3. Nc3 {[%emt 0:00:07]} Nf6 {[%emt 0:00:54]} 4. g3 {[%emt 0:00:35]} g6 {[%emt 0:02:06]} 5. Bg2 {[%emt 0:05:44]} Bg7 {[%emt 0:00:23]} 6. d5 {[%emt 0:02:56]} d6 {[%emt 0:04:14]} 7. Nh3 {[%emt 0:00:19]} Bd7 {[%emt 0:01:48]} 8. Nf4 {[%emt 0:01:24]} Na6 {[%emt 0:01:11]} 9. h4 {[%emt 0:07:22]} Nc5 {[%emt 0:05:32]} 10. h5 {[%emt 0:03:44]} Ng4 {[%emt 0:06:55]} 11. hxg6 {[%emt 0:03:13]} hxg6 {[%emt 0:00:17]} 12. Rxh8+ {[%emt 0:00:19]} Bxh8 {[%emt 0:00:06]} 13. Nxg6 {[%emt 0:01:40]} Bxc3+ {[%emt 0:01:24]} 14. bxc3 {[%emt 0:00:02]} Qb6 {[%emt 1:50:56]} 15. Qd4 {[%emt 0:10:33]} Kf7 {[%emt 0:00:00]} 16. Nh4 {[%emt 0:13:10]} Qa5 {[%emt 0:00:00]} 17. Bb2 {[%emt 0:21:28]} Rg8 {[%emt 0:00:00]} 18. Qf4 {[%emt 0:15:55]} Ne5 {[%emt 0:00:00]} 19. Kf1 {[%emt 0:03:32]} Ke8 {[%emt 0:00:00]} 20. dxc6 {[%emt 0:03:35]} bxc6 {[%emt 0:00:00]} 21. Bh3 {[%emt 0:04:40]} Kd8 {[%emt 0:00:00]} 22. Bxf5 {[%emt 0:05:03]} Rf8 {[%emt 0:00:00]} 23. Qg5 {[%emt 0:00:41]} Nxc4 {[%emt 0:00:00]} 24. Bc1 {[%emt 0:06:40]} Ne4 {[%emt 0:00:00]} 25. Bxe4 {[%emt 0:01:40]} 1-0

[Event "13th Senioren-Cup Tegernsee 2025"]
[Site "Rottach-Egern"]
[Date "2025.04.04"]
[Round "7.6"]
[White "Lindam, Ingo"]
[Black "Oechslein, Rainer"]
[Result "1/2-1/2"]
[Annotator "ChessBase"]
[ECO "C10"]
[WhiteElo "2151"]
[BlackElo "2070"]
[PlyCount "78"]
[EventDate "2025.03.25"]
[EventType "swiss"]
[EventCountry "GER"]
[SourceTitle "playchess.com"]
[Source "ChessBase"]
[SourceQuality "1"]
[TimeControl "7800+30"]

1. d4 {[%emt 0:00:04]} e6 {[%emt 0:00:06]} 2. e4 {[%emt 0:02:01]} d5 {[%emt 0:00:12]} 3. Nd2 {[%emt 0:00:52]} dxe4 {[%emt 0:00:05]} 4. Nxe4 {[%emt 0:00:10]} Nd7 {[%emt 0:00:12]} 5. Nf3 {[%emt 0:05:49]} Be7 {[%emt 0:02:14]} 6. Bd3 {[%emt 0:02:17]} Ngf6 {[%emt 0:00:55]} 7. O-O {[%emt 0:01:41]} O-O {[%emt 0:00:40]} 8. Re1 {[%emt 0:05:08]} b6 {[%emt 0:06:06]} 9. Ne5 {[%emt 0:05:05]} Bb7 {[%emt 0:01:20]} 10. Ng5 {[%emt 0:06:45]} g6 {[%emt 0:07:49]} 11. c4 {[%emt 0:11:08]} Nxe5 {[%emt 0:11:04]} 12. dxe5 {[%emt 0:00:53]} Nd7 {[%emt 0:03:21]} 13. Nf3 {[%emt 0:56:36]} Nc5 {[%emt 0:00:56]} 14. Bc2 {[%emt 0:02:14]} Qxd1 {[%emt 0:01:01]} 15. Rxd1 {[%emt 0:00:03]} Bxf3 {[%emt 0:03:12]} 16. gxf3 {[%emt 0:00:04]} Rfd8 {[%emt 0:00:55]} 17. Be3 {[%emt 0:01:36]} a5 {[%emt 0:00:13]} 18. f4 {[%emt 0:08:12]} Kf8 {[%emt 0:05:47]} 19. Kg2 {[%emt 0:03:26]} Ke8 {[%emt 0:00:17]} 20. Kf3 {[%emt 0:00:26]} Rxd1 {[%emt 0:00:45]} 21. Rxd1 {[%emt 0:00:02]} Rd8 {[%emt 0:00:09]} 22. Rxd8+ {[%emt 0:01:12]} Kxd8 {[%emt 0:00:07]} 23. a3 {[%emt 0:00:16]} f5 {[%emt 0:02:15]} 24. exf6 {[%emt 0:12:16]} Bxf6 {[%emt 0:00:10]} 25. b4 {[%emt 0:04:44]} axb4 {[%emt 0:00:12]} 26. axb4 {[%emt 0:00:01]} Na6 {[%emt 0:00:15]} 27. b5 {[%emt 0:00:25]} Nc5 {[%emt 0:00:14]} 28. Bxc5 {[%emt 0:04:20]} bxc5 {[%emt 0:00:06]} 29. Ke4 {[%emt 0:00:59]} Ke7 {[%emt 1:34:22]} 30. h3 {[%emt 0:01:02]} Bh4 {[%emt 0:00:00]} 31. f3 {[%emt 0:01:23]} Bf6 {[%emt 0:00:00]} 32. Ke3 {[%emt 0:00:50]} Bd4+ {[%emt 0:00:00]} 33. Ke4 {[%emt 0:00:29]} Bf6 {[%emt 0:00:00]} 34. Bd1 {[%emt 0:00:31]} Bd4 {[%emt 0:00:00]} 35. Bc2 {[%emt 0:00:16]} Bf6 {[%emt 0:00:00]} 36. Kd3 {[%emt 0:00:25]} Bd4 {[%emt 0:00:00]} 37. Ke4 {[%emt 0:00:36]} Bf6 {[%emt 0:00:00]} 38. Bd1 {[%emt 0:00:05]} Bh4 {[%emt 0:00:00]} 39. Bc2 {[%emt 0:00:21]} Bf6 {[%emt 0:00:00]} 1/2-1/2

[Event "13th Senioren-Cup Tegernsee 2025"]
[Site "Rottach-Egern"]
[Date "2025.04.04"]
[Round "7.8"]
[White "Kannenberg, Karl-Heinz"]
[Black "Marentini, Marcel"]
[Result "1/2-1/2"]
[Annotator "NA"]
[ECO "C02"]
[WhiteElo "2113"]
[BlackElo "2036"]
[PlyCount "22"]
[EventDate "2025.03.25"]
[EventType "swiss"]
[EventCountry "GER"]
[SourceTitle "playchess.com"]
[Source "ChessBase"]
[SourceQuality "1"]
[TimeControl "7800+30"]

1. e4 {[%emt 0:00:04]} c5 {[%emt 0:00:08]} 2. c3 {[%emt 0:00:10]} e6 {[%emt 0:00:24]} 3. Nf3 {[%emt 0:00:15]} Nc6 {[%emt 0:00:55]} 4. d4 {[%emt 0:00:10]} d5 {[%emt 2:11:03]} 5. e5 {[%emt 2:12:21]} Bd7 {[%emt 0:00:00]} 6. a3 {[%emt 0:00:00]} c4 {[%emt 0:00:00]} 7. g3 {[%emt 0:00:00]} Na5 {[%emt 0:00:00]} 8. Nbd2 {[%emt 0:00:00]} Bc6 {[%emt 0:00:00]} 9. h4 {[%emt 0:00:00]} h6 {[%emt 0:00:00]} 10. Bg2 {[%emt 0:00:00]} Qd7 {[%emt 0:00:00]} 11. h5 {[%emt 0:00:00]} O-O-O {[%emt 0:00:00]} 1/2-1/2

[Event "13th Senioren-Cup Tegernsee 2025"]
[Site "Rottach-Egern"]
[Date "2025.04.04"]
[Round "7.9"]
[White "Pollmann, Sascha"]
[Black "Kolthoff, Siegmund"]
[Result "1/2-1/2"]
[Annotator "NA"]
[ECO "D02"]
[WhiteElo "2071"]
[BlackElo "2121"]
[PlyCount "29"]
[EventDate "2025.03.25"]
[EventType "swiss"]
[EventCountry "GER"]
[SourceTitle "playchess.com"]
[Source "ChessBase"]
[SourceQuality "1"]
[TimeControl "7800+30"]

1. Nf3 {[%emt 0:00:02]} d5 {[%emt 0:00:40]} 2. g3 {[%emt 0:00:17]} c6 {[%emt 0:00:18]} 3. Bg2 {[%emt 0:00:19]} Bg4 {[%emt 0:00:17]} 4. d4 {[%emt 0:00:27]} Nd7 {[%emt 0:02:19]} 5. h3 {[%emt 0:00:51]} Bh5 {[%emt 0:03:18]} 6. c4 {[%emt 0:00:32]} e6 {[%emt 0:00:28]} 7. O-O {[%emt 0:01:22]} Ngf6 {[%emt 0:01:24]} 8. cxd5 {[%emt 0:00:17]} exd5 {[%emt 0:00:55]} 9. Qb3 {[%emt 0:00:52]} Qb6 {[%emt 0:00:54]} 10. Qe3+ {[%emt 0:00:37]} Be7 {[%emt 0:02:42]} 11. Nh4 {[%emt 0:00:18]} Bg6 {[%emt 0:01:34]} 12. Nc3 {[%emt 0:00:28]} Qd8 {[%emt 0:03:17]} 13. Nxg6 {[%emt 0:00:47]} hxg6 {[%emt 0:00:15]} 14. Qd3 {[%emt 0:00:39]} O-O {[%emt 0:02:31]} 15. h4 {[%emt 0:00:33]} 1/2-1/2

[Event "13th Senioren-Cup Tegernsee 2025"]
[Site "Rottach-Egern"]
[Date "2025.04.04"]
[Round "7.10"]
[White "Hafner, Robert"]
[Black "Schrems, Hermann"]
[Result "1-0"]
[Annotator "NA"]
[ECO "D05"]
[WhiteElo "2011"]
[BlackElo "2114"]
[PlyCount "51"]
[EventDate "2025.03.25"]
[EventType "swiss"]
[EventCountry "GER"]
[SourceTitle "playchess.com"]
[Source "ChessBase"]
[SourceQuality "1"]
[TimeControl "7800+30"]

1. d4 {[%emt 0:00:03]} d5 {[%emt 0:00:05]} 2. Nf3 {[%emt 0:00:06]} Nf6 {[%emt 0:00:05]} 3. e3 {[%emt 0:00:04]} e6 {[%emt 0:00:03]} 4. Be2 {[%emt 0:00:05]} c5 {[%emt 0:00:26]} 5. O-O {[%emt 0:00:07]} Nc6 {[%emt 0:00:02]} 6. b3 {[%emt 0:00:10]} Bd6 {[%emt 0:00:19]} 7. dxc5 {[%emt 0:00:07]} Bxc5 {[%emt 0:00:06]} 8. Bb2 {[%emt 0:00:06]} O-O {[%emt 0:00:34]} 9. Nbd2 {[%emt 0:00:20]} a6 {[%emt 0:01:30]} 10. c4 {[%emt 0:00:11]} Re8 {[%emt 0:03:50]} 11. a3 {[%emt 0:11:28]} Bf8 {[%emt 0:06:08]} 12. b4 {[%emt 0:00:55]} Bd7 {[%emt 0:03:47]} 13. Qb3 {[%emt 0:03:26]} Rc8 {[%emt 0:13:27]} 14. Rac1 {[%emt 0:02:41]} dxc4 {[%emt 0:05:02]} 15. Nxc4 {[%emt 0:00:27]} Nd5 {[%emt 0:05:14]} 16. Rfd1 {[%emt 0:03:11]} b5 {[%emt 0:06:56]} 17. Nce5 {[%emt 0:01:20]} Nxe5 {[%emt 0:00:18]} 18. Nxe5 {[%emt 0:00:24]} Rxc1 {[%emt 0:00:07]} 19. Bxc1 {[%emt 0:00:59]} Qc7 {[%emt 0:00:32]} 20. Nxd7 {[%emt 0:00:16]} Qxd7 {[%emt 0:01:01]} 21. e4 {[%emt 0:00:39]} Qc7 {[%emt 0:02:28]} 22. exd5 {[%emt 0:00:22]} exd5 {[%emt 0:00:01]} 23. Bf3 {[%emt 0:02:12]} Qe5 {[%emt 0:00:17]} 24. Qe3 {[%emt 0:06:03]} Qb8 {[%emt 0:00:37]} 25. Qd4 {[%emt 0:01:02]} Bd6 {[%emt 0:00:37]} 26. g3 {[%emt 0:00:20]} 1-0